[Event "*** Titled Tuesday 3|2 Blitz"]
[Site "Chess.com"]
[Date "2015.10.06"]
[Round "1"]
[White "ChessFrois"]
[Black "jbj"]
[Result "1/2-1/2"]
[WhiteElo "1831"]
[BlackElo "2253"]
[TimeControl "180+2"]
[EndTime "17:10:18 PDT"]
[Termination "Game drawn by repetition"]

1. e4 {[%clk 0:02:59.4]} 1... d6 {[%clk 0:01:55.7]} 2. d4 {[%clk 0:02:59.3]}
2... Nf6 {[%clk 0:01:55.7]} 3. Nc3 {[%clk 0:02:59.7]} 3... e5 {[%clk 0:01:56.9]}
4. dxe5 {[%clk 0:02:37.4]} 4... dxe5 {[%clk 0:01:57.8]} 5. Qxd8+ {[%clk
0:02:38]} 5... Kxd8 {[%clk 0:01:59.7]} 6. Nf3 {[%clk 0:02:32.5]} 6... Bd6 {[%clk
0:01:59.4]} 7. Bg5 {[%clk 0:02:31.9]} 7... c6 {[%clk 0:01:54]} 8. O-O-O {[%clk
0:02:31.9]} 8... Kc7 {[%clk 0:01:55.2]} 9. Bc4 {[%clk 0:02:27.8]} 9... Be6
{[%clk 0:01:48.8]} 10. Bxe6 {[%clk 0:02:23.7]} 10... fxe6 {[%clk 0:01:50.7]} 11.
Bh4 {[%clk 0:02:20]} 11... h6 {[%clk 0:01:50.4]} 12. Bg3 {[%clk 0:02:20.9]}
12... Nbd7 {[%clk 0:01:50.4]} 13. Rd2 {[%clk 0:02:16]} 13... Rad8 {[%clk
0:01:26.7]} 14. Rhd1 {[%clk 0:02:15.5]} 14... Ne8 {[%clk 0:01:27.6]} 15. b3
{[%clk 0:01:44]} 15... Rf8 {[%clk 0:01:02.3]} 16. Na4 {[%clk 0:01:36.3]} 16...
b5 {[%clk 0:01:00.1]} 17. Nb2 {[%clk 0:01:30.2]} 17... Rf7 {[%clk 0:00:53.1]}
18. Nd3 {[%clk 0:01:29.7]} 18... Nef6 {[%clk 0:00:26.7]} 19. Ndxe5 {[%clk
0:01:23.8]} 19... Nxe5 {[%clk 0:00:15.6]} 20. Nxe5 {[%clk 0:01:24.1]} 20... Re7
{[%clk 0:00:04.7]} 21. f3 {[%clk 0:01:06]} 21... Ba3+ {[%clk 0:00:03.3]} 22. Kb1
{[%clk 0:01:05.5]} 22... Rxd2 {[%clk 0:00:05]} 23. Rxd2 {[%clk 0:01:06.4]} 23...
Kb7 {[%clk 0:00:06.3]} 24. Bh4 {[%clk 0:01:04]} 24... Bb4 {[%clk 0:00:06.7]} 25.
Rd3 {[%clk 0:01:03.3]} 25... g5 {[%clk 0:00:07.6]} 26. Bf2 {[%clk 0:01:00.5]}
26... Kc7 {[%clk 0:00:08.7]} 27. h4 {[%clk 0:01:00.3]} 27... Bd6 {[%clk
0:00:09.4]} 28. Ng6 {[%clk 0:00:32.1]} 28... Rg7 {[%clk 0:00:10]} 29. e5 {[%clk
0:00:32.7]} 29... Rxg6 {[%clk 0:00:10.9]} 30. exd6+ {[%clk 0:00:33.5]} 30... Kd7
{[%clk 0:00:12.4]} 31. hxg5 {[%clk 0:00:31]} 31... Rxg5 {[%clk 0:00:13.3]} 32.
g4 {[%clk 0:00:31.7]} 32... Nd5 {[%clk 0:00:13.5]} 33. Bxa7 {[%clk 0:00:30.8]}
33... h5 {[%clk 0:00:13.8]} 34. gxh5 {[%clk 0:00:29.3]} 34... Rxh5 {[%clk
0:00:15.7]} 35. Kb2 {[%clk 0:00:29.8]} 35... b4 {[%clk 0:00:15.5]} 36. Bc5
{[%clk 0:00:29.1]} 36... Rh2 {[%clk 0:00:11.8]} 37. Rd4 {[%clk 0:00:23.2]} 37...
Ne3 {[%clk 0:00:09.1]} 38. Rc4 {[%clk 0:00:24.2]} 38... Nxc4+ {[%clk 0:00:09.7]}
39. bxc4 {[%clk 0:00:26.1]} 39... Rh4 {[%clk 0:00:10.4]} 40. Kb3 {[%clk
0:00:26.4]} 40... Rh3 {[%clk 0:00:11.5]} 41. Bxb4 {[%clk 0:00:26.2]} 41... Rxf3+
{[%clk 0:00:12.7]} 42. c3 {[%clk 0:00:27.6]} 42... e5 {[%clk 0:00:13]} 43. c5
{[%clk 0:00:28.9]} 43... e4 {[%clk 0:00:14]} 44. Kc2 {[%clk 0:00:29.7]} 44...
Rf2+ {[%clk 0:00:14.6]} 45. Kd1 {[%clk 0:00:30.3]} 45... Rxa2 {[%clk 0:00:15.2]}
46. Ke1 {[%clk 0:00:31.2]} 46... e3 {[%clk 0:00:16]} 47. Kd1 {[%clk 0:00:29.6]}
47... Rd2+ {[%clk 0:00:13.6]} 48. Ke1 {[%clk 0:00:30.5]} 48... Rh2 {[%clk
0:00:15.5]} 49. Kd1 {[%clk 0:00:31.4]} 49... Rb2 {[%clk 0:00:17]} 50. Ke1 {[%clk
0:00:32.5]} 50... Rc2 {[%clk 0:00:18.6]} 51. Kd1 {[%clk 0:00:33.7]} 51... Rg2
{[%clk 0:00:20.3]} 52. Ke1 {[%clk 0:00:35.1]} 52... Ra2 {[%clk 0:00:21.9]} 53.
Kd1 {[%clk 0:00:36.2]} 53... Ke6 {[%clk 0:00:23.5]} 54. Ke1 {[%clk 0:00:37.3]}
54... Rd2 {[%clk 0:00:24.3]} 55. Kf1 {[%clk 0:00:36.1]} 55... Kf5 {[%clk
0:00:25.3]} 56. c4 {[%clk 0:00:33.4]} 56... Rd3 {[%clk 0:00:26.1]} 57. Ke2
{[%clk 0:00:33.4]} 57... Ke4 {[%clk 0:00:27.5]} 58. Ba5 {[%clk 0:00:30.8]} 58...
Rd4 {[%clk 0:00:25.2]} 59. Bc3 {[%clk 0:00:28.6]} 59... Rd3 {[%clk 0:00:23.5]}
60. Ba5 {[%clk 0:00:29.3]} 60... Rd4 {[%clk 0:00:12.8]} 61. Bc3 {[%clk
0:00:30.1]} 61... Rd3 {[%clk 0:00:11]} 62. Ba5 {[%clk 0:00:31.1]} 1/2-1/2

[Event "*** Titled Tuesday 3|2 Blitz"]
[Site "Chess.com"]
[Date "2015.10.06"]
[Round "1"]
[White "Iball95"]
[Black "Makalexa"]
[Result "0-1"]
[WhiteElo "2334"]
[BlackElo "2055"]
[TimeControl "180+2"]
[EndTime "17:10:49 PDT"]
[Termination "Makalexa won on time"]

1. e4 {[%clk 0:02:55.8]} 1... e5 {[%clk 0:03:00]} 2. Nf3 {[%clk 0:02:55.9]} 2...
Nc6 {[%clk 0:03:00.2]} 3. Nc3 {[%clk 0:02:56.6]} 3... Nf6 {[%clk 0:02:59.2]} 4.
Bb5 {[%clk 0:02:57.8]} 4... Nd4 {[%clk 0:02:58.9]} 5. Bc4 {[%clk 0:02:57.4]}
5... d6 {[%clk 0:02:49.4]} 6. Nxd4 {[%clk 0:02:56.9]} 6... exd4 {[%clk
0:02:48.5]} 7. Nd5 {[%clk 0:02:58.1]} 7... Be6 {[%clk 0:02:41.3]} 8. d3 {[%clk
0:02:16.7]} 8... c6 {[%clk 0:02:41]} 9. Nxf6+ {[%clk 0:02:09.7]} 9... Qxf6
{[%clk 0:02:42.2]} 10. O-O {[%clk 0:01:57.7]} 10... Bxc4 {[%clk 0:02:39.5]} 11.
dxc4 {[%clk 0:01:59.6]} 11... Be7 {[%clk 0:02:36.4]} 12. Qd3 {[%clk 0:01:59.5]}
12... O-O {[%clk 0:02:33.6]} 13. b3 {[%clk 0:02:00.4]} 13... d5 {[%clk 0:02:21]}
14. cxd5 {[%clk 0:01:54.5]} 14... cxd5 {[%clk 0:02:22.9]} 15. exd5 {[%clk
0:01:52.6]} 15... Rad8 {[%clk 0:02:23.6]} 16. Qb5 {[%clk 0:01:44.1]} 16... d3
{[%clk 0:02:23.8]} 17. Be3 {[%clk 0:01:32.4]} 17... dxc2 {[%clk 0:02:17.2]} 18.
Qxb7 {[%clk 0:01:29.5]} 18... a6 {[%clk 0:02:13]} 19. Rac1 {[%clk 0:01:03.2]}
19... Rc8 {[%clk 0:02:09]} 20. g3 {[%clk 0:00:47.8]} 20... Ba3 {[%clk
0:02:05.5]} 21. Rce1 {[%clk 0:00:49.3]} 21... Rfe8 {[%clk 0:01:51.9]} 22. Bc1
{[%clk 0:00:44.6]} 22... Qd6 {[%clk 0:01:37.7]} 23. Rxe8+ {[%clk 0:00:36.5]}
23... Rxe8 {[%clk 0:01:36.4]} 24. Bxa3 {[%clk 0:00:32.8]} 24... Qxa3 {[%clk
0:01:35.7]} 25. Qc6 {[%clk 0:00:34.3]} 25... Rd8 {[%clk 0:01:15.3]} 26. Qxc2
{[%clk 0:00:35.3]} 26... Rxd5 {[%clk 0:01:15.2]} 27. Qc8+ {[%clk 0:00:34.1]}
27... Qf8 {[%clk 0:01:15.6]} 28. Qxa6 {[%clk 0:00:35.4]} 28... h5 {[%clk
0:01:13.6]} 29. Qc4 {[%clk 0:00:35.5]} 29... Qd8 {[%clk 0:01:13]} 30. a4 {[%clk
0:00:36]} 30... Rd4 {[%clk 0:01:12.3]} 31. Qc3 {[%clk 0:00:28.5]} 31... h4
{[%clk 0:01:11]} 32. Re1 {[%clk 0:00:21.4]} 32... h3 {[%clk 0:01:05]} 33. Qc6
{[%clk 0:00:20.1]} 33... Rd1 {[%clk 0:00:58.8]} 34. Qe4 {[%clk 0:00:20.2]} 34...
Qd5 {[%clk 0:00:42.2]} 35. Kf1 {[%clk 0:00:14.9]} 35... Rxe1+ {[%clk 0:00:38.9]}
36. Qxe1 {[%clk 0:00:16.8]} 36... Qh1+ {[%clk 0:00:21.8]} 37. Ke2 {[%clk
0:00:17.5]} 37... Qxh2 {[%clk 0:00:23.7]} 38. Qc1 {[%clk 0:00:11.3]} 38... Qg2
{[%clk 0:00:23.3]} 39. Qc8+ {[%clk 0:00:12.4]} 39... Kh7 {[%clk 0:00:21.7]} 40.
Qf5+ {[%clk 0:00:13.7]} 40... Kh6 {[%clk 0:00:21.3]} 41. Qf4+ {[%clk 0:00:13.7]}
41... Kg6 {[%clk 0:00:22.6]} 42. Qg4+ {[%clk 0:00:14.6]} 42... Kf6 {[%clk
0:00:23.1]} 43. Qf4+ {[%clk 0:00:15.7]} 43... Ke7 {[%clk 0:00:23.1]} 44. Qe5+
{[%clk 0:00:16.1]} 44... Kf8 {[%clk 0:00:22.7]} 45. Qb8+ {[%clk 0:00:16.2]}
45... Ke7 {[%clk 0:00:23.8]} 46. Qe5+ {[%clk 0:00:17.1]} 46... Kd7 {[%clk
0:00:25.3]} 47. Qd4+ {[%clk 0:00:17.6]} 47... Ke6 {[%clk 0:00:26.3]} 48. Qg4+
{[%clk 0:00:16.4]} 48... Ke5 {[%clk 0:00:22.1]} 49. Qf4+ {[%clk 0:00:16.7]}
49... Ke6 {[%clk 0:00:21.3]} 50. Qg4+ {[%clk 0:00:17.6]} 50... f5 {[%clk
0:00:22.1]} 51. Qg6+ {[%clk 0:00:17.9]} 51... Kd5 {[%clk 0:00:10.1]} 52. Qf7+
{[%clk 0:00:17.5]} 52... Kd4 {[%clk 0:00:11.3]} 53. Qc4+ {[%clk 0:00:13.1]}
53... Ke5 {[%clk 0:00:12.2]} 54. Qc7+ {[%clk 0:00:14]} 54... Ke6 {[%clk
0:00:12]} 55. Qc8+ {[%clk 0:00:13.7]} 55... Ke5 {[%clk 0:00:12.9]} 56. Qe8+
{[%clk 0:00:13.8]} 56... Kf6 {[%clk 0:00:13.3]} 57. Qf8+ {[%clk 0:00:13.8]}
57... Ke5 {[%clk 0:00:14.4]} 58. Qe7+ {[%clk 0:00:14.5]} 58... Kd4 {[%clk
0:00:15.4]} 59. Qe3+ {[%clk 0:00:14.4]} 59... Kd5 {[%clk 0:00:15.3]} 60. Qd3+
{[%clk 0:00:15.5]} 60... Ke5 {[%clk 0:00:15.8]} 61. Qe3+ {[%clk 0:00:13.9]}
61... Qe4 {[%clk 0:00:15.9]} 62. f4+ {[%clk 0:00:13.5]} 62... Kd5 {[%clk
0:00:16.2]} 63. Qxe4+ {[%clk 0:00:11.1]} 63... fxe4 {[%clk 0:00:15.2]} 64. Kf2
{[%clk 0:00:12.2]} 64... e3+ {[%clk 0:00:13.3]} 0-1

[Event "*** Titled Tuesday 3|2 Blitz"]
[Site "Chess.com"]
[Date "2015.10.06"]
[Round "2"]
[White "Boryboy"]
[Black "gmjlh"]
[Result "0-1"]
[WhiteElo "2445"]
[BlackElo "2633"]
[TimeControl "180+2"]
[EndTime "17:19:44 PDT"]
[Termination "gmjlh won by resignation"]

1. d4 {[%clk 0:03:01.2]} 1... Nf6 {[%clk 0:02:55.7]} 2. Nf3 {[%clk 0:03:00.5]}
2... d5 {[%clk 0:02:56.2]} 3. c4 {[%clk 0:03:01.1]} 3... e6 {[%clk 0:02:57.2]}
4. g3 {[%clk 0:03:02.6]} 4... dxc4 {[%clk 0:02:54.4]} 5. Bg2 {[%clk 0:03:04.1]}
5... a6 {[%clk 0:02:55.9]} 6. Ne5 {[%clk 0:03:00]} 6... c5 {[%clk 0:02:57.1]} 7.
Na3 {[%clk 0:03:00.1]} 7... cxd4 {[%clk 0:02:55.3]} 8. Naxc4 {[%clk 0:03:01.2]}
8... Ra7 {[%clk 0:02:51.1]} 9. Bd2 {[%clk 0:03:01.7]} 9... Nd5 {[%clk
0:02:43.9]} 10. Ba5 {[%clk 0:02:46.8]} 10... b6 {[%clk 0:02:43.1]} 11. Qxd4
{[%clk 0:02:42.6]} 11... f6 {[%clk 0:02:33.5]} 12. Nd3 {[%clk 0:02:37.8]} 12...
Nc6 {[%clk 0:02:26.9]} 13. Bxb6 {[%clk 0:02:23.4]} 13... Nxd4 {[%clk 0:02:25.3]}
14. Bxd8 {[%clk 0:02:24]} 14... Kxd8 {[%clk 0:02:21.2]} 15. Rc1 {[%clk
0:02:24.1]} 15... Nb4 {[%clk 0:01:56.9]} 16. a3 {[%clk 0:01:59.7]} 16... Nxd3+
{[%clk 0:01:56.1]} 17. exd3 {[%clk 0:02:01.6]} 17... Rc7 {[%clk 0:01:53.9]} 18.
Rd1 {[%clk 0:01:56]} 18... Bd7 {[%clk 0:01:53.7]} 19. O-O {[%clk 0:01:56.4]}
19... Ba4 {[%clk 0:01:54.1]} 20. Rd2 {[%clk 0:01:52.7]} 20... Bc5 {[%clk
0:01:51.4]} 21. Re1 {[%clk 0:01:53.3]} 21... Ke7 {[%clk 0:01:51.7]} 22. h4
{[%clk 0:01:49.5]} 22... Kf7 {[%clk 0:01:51.5]} 23. Kh2 {[%clk 0:01:46.7]} 23...
Rd8 {[%clk 0:01:51.8]} 24. b4 {[%clk 0:01:41.2]} 24... Ba7 {[%clk 0:01:51.6]}
25. h5 {[%clk 0:01:33.1]} 25... g6 {[%clk 0:01:49.8]} 26. h6 {[%clk 0:01:32.4]}
26... Nf5 {[%clk 0:01:47.2]} 27. Rde2 {[%clk 0:01:25]} 27... Re7 {[%clk
0:01:47.6]} 28. Bh3 {[%clk 0:01:17.8]} 28... Bb5 {[%clk 0:01:41.6]} 29. Rc2
{[%clk 0:01:10.2]} 29... Nd4 {[%clk 0:01:40.9]} 0-1

[Event "*** Titled Tuesday 3|2 Blitz"]
[Site "Chess.com"]
[Date "2015.10.06"]
[Round "2"]
[White "HubertKnott"]
[Black "dsanchez1973"]
[Result "0-1"]
[WhiteElo "1969"]
[BlackElo "1953"]
[TimeControl "180+2"]
[EndTime "17:20:13 PDT"]
[Termination "dsanchez1973 won by resignation"]

1. d4 {[%clk 0:03:01.9]} 1... d5 {[%clk 0:02:58.5]} 2. Nf3 {[%clk 0:02:58.1]}
2... c6 {[%clk 0:02:59.4]} 3. c4 {[%clk 0:02:58.8]} 3... e6 {[%clk 0:02:59.8]}
4. cxd5 {[%clk 0:02:58.3]} 4... exd5 {[%clk 0:03:00.7]} 5. Nc3 {[%clk
0:02:59.2]} 5... Nf6 {[%clk 0:03:01.5]} 6. Bg5 {[%clk 0:03:00.2]} 6... Be7
{[%clk 0:03:02.3]} 7. e3 {[%clk 0:03:01.4]} 7... Bg4 {[%clk 0:03:02.5]} 8. h3
{[%clk 0:03:01]} 8... Bh5 {[%clk 0:03:03.1]} 9. Be2 {[%clk 0:03:01.3]} 9... Nbd7
{[%clk 0:03:03.1]} 10. O-O {[%clk 0:03:01.5]} 10... h6 {[%clk 0:03:03.4]} 11.
Bh4 {[%clk 0:03:01.6]} 11... Bg6 {[%clk 0:03:03.4]} 12. Bd3 {[%clk 0:02:58.8]}
12... Ne4 {[%clk 0:03:02]} 13. Bxe7 {[%clk 0:02:56.3]} 13... Qxe7 {[%clk
0:03:02.4]} 14. Qc2 {[%clk 0:02:56.2]} 14... O-O {[%clk 0:02:58.1]} 15. Nd2
{[%clk 0:02:55.8]} 15... Nxc3 {[%clk 0:02:51.2]} 16. Qxc3 {[%clk 0:02:56.2]}
16... Bxd3 {[%clk 0:02:51.1]} 17. Qxd3 {[%clk 0:02:56.9]} 17... Nf6 {[%clk
0:02:52]} 18. Rab1 {[%clk 0:02:52.6]} 18... Rfe8 {[%clk 0:02:51.8]} 19. b4
{[%clk 0:02:53]} 19... Ne4 {[%clk 0:02:52.6]} 20. a4 {[%clk 0:02:49.8]} 20...
Nxd2 {[%clk 0:02:51.6]} 21. Qxd2 {[%clk 0:02:49.9]} 21... Qe4 {[%clk 0:02:53.2]}
22. b5 {[%clk 0:02:45.1]} 22... Re6 {[%clk 0:02:39.7]} 23. bxc6 {[%clk 0:02:42]}
23... bxc6 {[%clk 0:02:40.6]} 24. Rb3 {[%clk 0:02:17]} 24... Rae8 {[%clk
0:02:40.8]} 25. Rfb1 {[%clk 0:02:15.9]} 25... Rg6 {[%clk 0:02:40.9]} 26. g3
{[%clk 0:02:16.2]} 26... h5 {[%clk 0:02:36.3]} 27. Qd3 {[%clk 0:02:11.4]} 27...
Qf3 {[%clk 0:02:33.3]} 28. Qd1 {[%clk 0:02:11.4]} 28... Qe4 {[%clk 0:02:26.7]}
29. Qd3 {[%clk 0:02:11]} 29... Qe6 {[%clk 0:02:25.9]} 30. h4 {[%clk 0:01:39.5]}
30... Qh3 {[%clk 0:02:20.7]} 31. Qf1 {[%clk 0:01:12.3]} 31... Qxh4 {[%clk
0:02:18]} 32. Qg2 {[%clk 0:01:11.1]} 32... Qg5 {[%clk 0:02:15.8]} 33. Rb7 {[%clk
0:01:10.1]} 33... h4 {[%clk 0:02:15.4]} 34. Rxa7 {[%clk 0:01:08.2]} 34... hxg3
{[%clk 0:02:15.8]} 35. fxg3 {[%clk 0:01:05.9]} 35... Qxe3+ {[%clk 0:02:16]} 36.
Kf1 {[%clk 0:00:44.8]} 36... Rxg3 {[%clk 0:02:15.1]} 0-1

[Event "*** Titled Tuesday 3|2 Blitz"]
[Site "Chess.com"]
[Date "2015.10.06"]
[Round "2"]
[White "chesstatour"]
[Black "ilmago"]
[Result "1-0"]
[WhiteElo "1870"]
[BlackElo "1890"]
[TimeControl "180+2"]
[EndTime "17:21:19 PDT"]
[Termination "chesstatour won by resignation"]

1. d4 {[%clk 0:03:00.3]} 1... Nf6 {[%clk 0:02:55.8]} 2. c4 {[%clk 0:03:00.4]}
2... g6 {[%clk 0:02:56]} 3. Nc3 {[%clk 0:03:01.1]} 3... Bg7 {[%clk 0:02:56.9]}
4. e4 {[%clk 0:03:02.7]} 4... d6 {[%clk 0:02:58]} 5. f4 {[%clk 0:03:04.1]} 5...
O-O {[%clk 0:02:58.1]} 6. Nf3 {[%clk 0:03:05.6]} 6... c5 {[%clk 0:02:59.1]} 7.
d5 {[%clk 0:03:07]} 7... e6 {[%clk 0:03:00.4]} 8. dxe6 {[%clk 0:03:08.9]} 8...
Bxe6 {[%clk 0:02:59.6]} 9. Bd3 {[%clk 0:03:10.8]} 9... Nc6 {[%clk 0:02:57.8]}
10. O-O {[%clk 0:03:11]} 10... Re8 {[%clk 0:02:53.3]} 11. f5 {[%clk 0:03:11.6]}
11... Bd7 {[%clk 0:02:39.3]} 12. Bg5 {[%clk 0:03:11.8]} 12... h6 {[%clk
0:02:36.5]} 13. Bxf6 {[%clk 0:02:53.9]} 13... Qxf6 {[%clk 0:02:36.7]} 14. Nd5
{[%clk 0:02:46.3]} 14... Qxb2 {[%clk 0:02:27.4]} 15. Rb1 {[%clk 0:02:42.1]}
15... Qxa2 {[%clk 0:02:13.8]} 16. Rxb7 {[%clk 0:02:42]} 16... Bc8 {[%clk
0:02:04]} 17. Rc7 {[%clk 0:02:17.3]} 17... Nb4 {[%clk 0:01:54.7]} 18. fxg6
{[%clk 0:01:58.9]} 18... fxg6 {[%clk 0:01:51.2]} 19. Nh4 {[%clk 0:01:36.2]}
19... g5 {[%clk 0:01:29.5]} 20. Rxg7+ {[%clk 0:01:21.5]} 20... Kxg7 {[%clk
0:01:27.3]} 21. Qf3 {[%clk 0:00:50.3]} 21... Be6 {[%clk 0:01:02.4]} 22. Qf6+
{[%clk 0:00:46.2]} 22... Kg8 {[%clk 0:00:56.7]} 23. Qg6+ {[%clk 0:00:44.8]}
23... Kh8 {[%clk 0:00:56.4]} 24. Qxh6+ {[%clk 0:00:42.6]} 24... Kg8 {[%clk
0:00:57]} 25. Qxg5+ {[%clk 0:00:35.1]} 25... Kh8 {[%clk 0:00:57.9]} 26. Ng6+
{[%clk 0:00:30.7]} 26... Kh7 {[%clk 0:00:58.2]} 27. Nf6+ {[%clk 0:00:27.2]}
27... Kg7 {[%clk 0:00:57.3]} 28. Ne5+ {[%clk 0:00:26.3]} 28... Kf8 {[%clk
0:00:56.7]} 29. Nd5+ {[%clk 0:00:17.6]} 1-0

[Event "*** Titled Tuesday 3|2 Blitz"]
[Site "Chess.com"]
[Date "2015.10.06"]
[Round "2"]
[White "Andnar"]
[Black "Jahonas"]
[Result "1-0"]
[WhiteElo "2251"]
[BlackElo "2042"]
[TimeControl "180+2"]
[EndTime "17:21:23 PDT"]
[Termination "Andnar won by resignation"]

1. e4 {[%clk 0:03:00.8]} 1... c6 {[%clk 0:02:55.6]} 2. d4 {[%clk 0:03:01]} 2...
d5 {[%clk 0:02:56.5]} 3. Nc3 {[%clk 0:03:00.7]} 3... dxe4 {[%clk 0:02:57.2]} 4.
Nxe4 {[%clk 0:03:02.6]} 4... Bf5 {[%clk 0:02:57.8]} 5. Ng3 {[%clk 0:03:03.6]}
5... Bg6 {[%clk 0:02:59]} 6. h4 {[%clk 0:03:04.9]} 6... h6 {[%clk 0:02:59.9]} 7.
Nf3 {[%clk 0:03:05.8]} 7... Nd7 {[%clk 0:03:01.2]} 8. h5 {[%clk 0:03:07.1]} 8...
Bh7 {[%clk 0:03:02]} 9. Bd3 {[%clk 0:03:08.7]} 9... Bxd3 {[%clk 0:03:03]} 10.
Qxd3 {[%clk 0:03:10.6]} 10... Ngf6 {[%clk 0:03:04.4]} 11. Bd2 {[%clk 0:03:12]}
11... Qc7 {[%clk 0:03:05.5]} 12. O-O-O {[%clk 0:03:13.6]} 12... O-O-O {[%clk
0:03:06.7]} 13. Kb1 {[%clk 0:03:15]} 13... a6 {[%clk 0:03:07.5]} 14. Rhe1 {[%clk
0:03:07.8]} 14... e6 {[%clk 0:03:07.9]} 15. Qe2 {[%clk 0:03:02.2]} 15... Bd6
{[%clk 0:03:07]} 16. Ne5 {[%clk 0:02:58.3]} 16... Rhf8 {[%clk 0:03:01.8]} 17.
Nc4 {[%clk 0:02:03.3]} 17... Bxg3 {[%clk 0:02:50.7]} 18. fxg3 {[%clk 0:02:04.7]}
18... Qxg3 {[%clk 0:02:47.7]} 19. Rf1 {[%clk 0:02:02.1]} 19... Nd5 {[%clk
0:02:34]} 20. Ba5 {[%clk 0:02:01.3]} 20... Rde8 {[%clk 0:02:04.4]} 21. Rf3
{[%clk 0:02:01.3]} 21... Qb8 {[%clk 0:01:59.3]} 22. Rb3 {[%clk 0:02:00]} 22...
b5 {[%clk 0:01:56.5]} 23. Ne5 {[%clk 0:01:58.4]} 23... Nxe5 {[%clk 0:01:56.3]}
24. dxe5 {[%clk 0:02:00.3]} 24... Qa7 {[%clk 0:01:50.8]} 25. c4 {[%clk
0:01:59.1]} 25... bxc4 {[%clk 0:01:47]} 26. Qxc4 {[%clk 0:01:58.5]} 26... Kd7
{[%clk 0:01:46.7]} 27. Bb4 {[%clk 0:01:49.3]} 27... Rg8 {[%clk 0:01:23.9]} 28.
Bc5 {[%clk 0:01:49.5]} 28... Qa8 {[%clk 0:01:21.5]} 29. Bd6 {[%clk 0:01:36.4]}
29... Rb8 {[%clk 0:01:18.9]} 30. Bxb8 {[%clk 0:01:35.4]} 30... Rxb8 {[%clk
0:01:19.7]} 31. Rf3 {[%clk 0:01:23.8]} 31... Ke8 {[%clk 0:01:15.3]} 32. Rdf1
{[%clk 0:01:19.3]} 32... Qb7 {[%clk 0:01:14.8]} 33. Rb3 {[%clk 0:01:19.2]} 33...
Nb6 {[%clk 0:01:09]} 34. Qc5 {[%clk 0:01:17.4]} 34... Qc7 {[%clk 0:01:06.6]} 35.
Rc1 {[%clk 0:01:14.6]} 35... Nd7 {[%clk 0:01:01.7]} 36. Qxc6 {[%clk 0:00:54.4]}
36... Qxc6 {[%clk 0:00:49.5]} 37. Rxc6 {[%clk 0:00:56.3]} 37... Rxb3 {[%clk
0:00:50.7]} 38. axb3 {[%clk 0:00:56.3]} 38... Nxe5 {[%clk 0:00:52.6]} 39. Rxa6
{[%clk 0:00:56.1]} 39... f5 {[%clk 0:00:48.2]} 40. Rxe6+ {[%clk 0:00:56]} 1-0

[Event "*** Titled Tuesday 3|2 Blitz"]
[Site "Chess.com"]
[Date "2015.10.06"]
[Round "2"]
[White "eugeniusjr"]
[Black "ItalianMachine"]
[Result "0-1"]
[WhiteElo "1993"]
[BlackElo "2207"]
[TimeControl "180+2"]
[EndTime "17:21:25 PDT"]
[Termination "ItalianMachine won by resignation"]

1. c4 {[%clk 0:03:01.9]} 1... Nf6 {[%clk 0:02:54.6]} 2. g3 {[%clk 0:03:03]} 2...
e6 {[%clk 0:02:55.2]} 3. Bg2 {[%clk 0:03:04.3]} 3... d5 {[%clk 0:02:56.3]} 4.
Nf3 {[%clk 0:03:06.2]} 4... c5 {[%clk 0:02:56.7]} 5. O-O {[%clk 0:03:08.1]} 5...
d4 {[%clk 0:02:55.4]} 6. e3 {[%clk 0:03:09]} 6... Nc6 {[%clk 0:02:56.3]} 7. exd4
{[%clk 0:03:10.3]} 7... cxd4 {[%clk 0:02:58.2]} 8. Re1 {[%clk 0:03:09.8]} 8...
Be7 {[%clk 0:02:59.2]} 9. a3 {[%clk 0:03:06.2]} 9... a5 {[%clk 0:02:59.5]} 10.
d3 {[%clk 0:03:07.5]} 10... O-O {[%clk 0:03:00.8]} 11. Bf4 {[%clk 0:03:07.5]}
11... Nd7 {[%clk 0:02:59.4]} 12. Ne5 {[%clk 0:03:03.9]} 12... Ncxe5 {[%clk
0:02:50.2]} 13. Bxe5 {[%clk 0:03:05.8]} 13... Nc5 {[%clk 0:02:51.4]} 14. Qc2
{[%clk 0:02:14.5]} 14... f6 {[%clk 0:02:50.7]} 15. Bf4 {[%clk 0:02:07.2]} 15...
a4 {[%clk 0:02:49.5]} 16. Bc1 {[%clk 0:01:56.7]} 16... e5 {[%clk 0:02:41.9]} 17.
Nd2 {[%clk 0:01:57.9]} 17... Bf5 {[%clk 0:02:33.7]} 18. Ne4 {[%clk 0:01:58.2]}
18... Nb3 {[%clk 0:02:09.2]} 19. Rb1 {[%clk 0:01:50.1]} 19... Rc8 {[%clk
0:02:10.2]} 20. Qe2 {[%clk 0:01:34.8]} 20... Qd7 {[%clk 0:02:02.1]} 21. Bd2
{[%clk 0:01:28.5]} 21... b5 {[%clk 0:02:01.8]} 22. Bb4 {[%clk 0:01:13]} 22...
Bxb4 {[%clk 0:02:01]} 23. axb4 {[%clk 0:01:14.7]} 23... bxc4 {[%clk 0:01:53.6]}
24. dxc4 {[%clk 0:01:00.5]} 24... d3 {[%clk 0:01:54.6]} 25. Qe3 {[%clk
0:00:49.5]} 25... Rxc4 {[%clk 0:01:54.9]} 26. Red1 {[%clk 0:00:46]} 26... Rd8
{[%clk 0:01:55.1]} 27. Nd2 {[%clk 0:00:37.1]} 27... Rxb4 {[%clk 0:01:43.7]} 28.
h3 {[%clk 0:00:28.9]} 28... Bxh3 {[%clk 0:01:35.9]} 29. Bxh3 {[%clk 0:00:27]}
29... Qxh3 {[%clk 0:01:36.9]} 30. Nxb3 {[%clk 0:00:19.9]} 30... Rxb3 {[%clk
0:01:35.9]} 31. Qa7 {[%clk 0:00:21]} 31... Qg4 {[%clk 0:01:28.8]} 32. Qc7 {[%clk
0:00:16.6]} 32... Qd4 {[%clk 0:01:29.6]} 33. Rd2 {[%clk 0:00:13.2]} 33... a3
{[%clk 0:01:29.7]} 34. Qc1 {[%clk 0:00:07.4]} 34... axb2 {[%clk 0:01:27.1]} 35.
Rdxb2 {[%clk 0:00:04.6]} 35... Rxb2 {[%clk 0:01:28.7]} 36. Rxb2 {[%clk
0:00:04.1]} 36... d2 {[%clk 0:01:29.7]} 0-1